bitfinex-derivatives/quotes_SOLF0:USTF0_20250819
["timestamp","ask_amount","ask_price","bid_price","bid_amount"]
[1755609776889,2.9,182.27,182.2,3.02]
[1755609777088,1.37178203,182.26,182.2,3.02]
[1755609777391,4.27178203,182.25,182.21,3.02]
[1755609777591,4.27178203,182.24,182.21,3.02]
[1755609777790,2.9,182.24,182.21,3.02]
[1755609778688,2.9,182.29,182.2,3.02]
[1755609778891,2.9,182.27,182.2,3.02]
[1755609779189,1.37178203,182.26,182.2,3.02]
[1755609779391,2.9,182.24,182.2,3.02]
[1755609780489,2.9,182.29,182.2,3.02]
[1755609780691,3.9460549,182.28,182.2,3.02]
[1755609780880,6.8460549,182.27,182.2,3.02]
[1755609781087,4.27178203,182.26,182.2,3.02]
[1755609781285,2.9,182.23,182.2,3.02]
[1755609782580,2.9,182.26,182.21,3.02]
[1755609782780,2.9,182.24,182.21,3.02]
[1755609782991,2.9,182.23,182.21,3.02]
[1755609783586,2.9,182.23,182.18,4.59038987]
[1755609783883,2.9,182.23,182.2,3.02]
[1755609784596,2.9,182.29,182.18,4.59038987]
[1755609784781,2.9,182.27,182.18,4.59038987]
[1755609784985,1.37179822,182.26,182.18,4.59038987]
[1755609785194,4.27179822,182.25,182.18,4.59038987]
[1755609785398,1.37179822,182.24,182.18,4.59038987]
[1755609785586,1.37179822,182.23,182.18,4.59038987]
[1755609785891,2.9,182.26,182.19,3.02]
[1755609786192,2.9,182.23,182.19,3.02]
[1755609786388,4.63083681,182.29,182.19,3.02]
[1755609786595,4.63083681,182.29,182.19,7.61038987]
[1755609786596,6.84661015,182.28,182.19,7.61038987]
[1755609786800,3.94661015,182.27,182.19,7.61038987]
[1755609787092,2.9,182.25,182.19,3.02]
[1755609787294,2.9,182.22,182.19,3.02]
[1755609788085,2.9,182.26,182.2,3.02]
[1755609788290,1.37173382,182.25,182.21,3.02]
[1755609788491,1.37173382,182.24,182.19,4.59038987]
[1755609788689,2.9,182.27,182.23,3.02]
[1755609788896,1.37172872,182.26,182.23,3.02]
[1755609789098,1.37172872,182.25,182.23,3.02]
[1755609789298,1.37172872,182.24,182.23,3.02]
[1755609789796,1.37172872,182.24,182.2,5.4865]
[1755609789993,2.9,182.26,182.22,3.02]
[1755609790196,4.27173382,182.25,182.22,3.02]
[1755609790389,2.9,182.25,182.22,3.02]
[1755609790696,5.9772944,182.31,182.21,5.4863]
[1755609790896,2.9,182.33,182.23,9.22122668]
[1755609791196,2.9,182.33,182.26,7.61038987]
[1755609791197,1.3714303,182.32,182.26,7.61038987]
[1755609791388,2.9,182.33,182.26,3.02]
[1755609791584,10.60813121,182.38,182.24,4.59038987]
[1755609791585,2.9,182.31,182.25,3.02]
[1755609791792,10.60813121,182.38,182.26,7.61038987]
[1755609791793,2.9,182.34,182.26,7.61038987]
[1755609792003,1.37125223,182.33,182.26,7.61038987]
[1755609792198,2.9,182.34,182.27,3.02]
[1755609792497,4.27125131,182.33,182.29,3.02]
[1755609792694,1.3712511,182.32,182.29,3.02]
[1755609792887,2.9,182.33,182.3,3.02]
[1755609793101,1.37120292,182.32,182.3,3.02]
[1755609793286,2.9,182.33,182.3,3.02]
[1755609793987,2.9,182.35,182.3,3.02]
[1755609794292,1.37108532,182.34,182.27,7.65083681]
[1755609794493,2.9,182.35,182.29,3.02]
[1755609794691,1.37107513,182.34,182.28,5.484]
[1755609794900,2.9,182.35,182.31,3.02]
[1755609795087,1.37107513,182.34,182.31,3.02]
[1755609795288,2.9,182.35,182.31,3.02]
[1755609795903,2.9,182.42,182.31,3.02]
[1755609796093,2.9,182.4,182.31,7.61038987]
[1755609796399,2.9,182.4,182.34,5.4824]
[1755609796701,2.9,182.4,182.34,3.02]
[1755609797600,2.9,182.4,182.34,8.5022]
[1755609801097,2.9,182.4,182.34,3.02]
[1755609807111,3.08,182.45,182.34,8.5024]
[1755609807311,3.08,182.43,182.34,3.02]
[1755609808313,3.08,182.43,182.34,8.5024]
[1755609809412,3.08,182.43,182.36,3.07]
[1755609810511,3.08,182.43,182.37,5.4813]
[1755609811216,3.08,182.43,182.39,3.07]
[1755609811520,3.08,182.48,182.34,7.70083681]
[1755609811718,1.37052056,182.47,182.34,7.70083681]
[1755609812020,3.08,182.48,182.34,7.70083681]
[1755609812215,1.37052056,182.47,182.35,5.4818]
[1755609812414,3.08,182.48,182.34,7.70083681]
[1755609812616,3.08,182.46,182.36,5.4818]
[1755609813116,3.08,182.46,182.36,8.5518]
[1755609813419,3.08,182.46,182.37,5.4815]
[1755609816319,3.08,182.46,182.38,3.07]
[1755609818926,3.08,182.46,182.38,8.5511]
[1755609819124,3.08,182.46,182.39,3.07]
[1755609819722,3.08,182.46,182.39,8.5507]
[1755609820517,3.08,182.49,182.42,3.07]
[1755609821222,4.63083681,182.47,182.38,3.07]
[1755609821421,3.08,182.46,182.38,3.07]
[1755609822334,3.08,182.5,182.4,3.07]
[1755609822626,3.08,182.48,182.4,3.07]
[1755609822827,3.08,182.48,182.4,8.5505]
[1755609823316,3.08,182.48,182.4,3.07]
[1755609824124,3.08,182.48,182.4,8.5504]
[1755609824717,3.08,182.48,182.4,3.07]
[1755609826533,3.08,182.48,182.41,3.07]
[1755609827924,3.08,182.56,182.41,3.07]
[1755609828227,4.63083681,182.53,182.41,3.07]
[1755609828423,4.44995987,182.52,182.41,8.5503]
[1755609828628,3.08,182.5,182.41,8.5503]
[1755609829132,3.08,182.5,182.42,5.48]
[1755609830222,3.08,182.5,182.41,3.07]
[1755609830424,1.37015285,182.49,182.37,3.07]
[1755609830625,4.63083681,182.5,182.37,3.07]
[1755609830626,1.37015285,182.48,182.37,3.07]
[1755609830826,369.45393429,182.57,182.37,3.07]
[1755609830827,3.08,182.46,182.37,3.07]
[1755609831432,3.08,182.46,182.37,8.5515]
[1755609831930,3.08,182.46,182.38,5.481]
[1755609832425,3.08,182.46,182.39,3.05]
[1755609835432,1.37026658,182.45,182.39,3.05]
[1755609835638,3.08,182.46,182.39,3.05]
[1755609835838,1.37026633,182.45,182.39,3.05]
[1755609836036,3.08,182.46,182.39,3.05]
[1755609836235,1.37026656,182.45,182.39,3.05]
[1755609836431,3.08,182.46,182.39,3.05]
[1755609836637,1.37026633,182.45,182.39,3.05]
[1755609836833,3.08,182.46,182.39,3.05]
[1755609837034,1.37024974,182.45,182.39,3.05]
[1755609837334,3.13,182.43,182.39,3.05]
[1755609837540,3.13,182.43,182.4,3.05]
[1755609837738,3.13,182.48,182.4,3.05]
[1755609837935,3.13,182.46,182.4,3.05]
[1755609838141,3.13,182.44,182.4,3.05]
[1755609839136,3.13,182.48,182.4,3.05]
[1755609839435,4.63083681,182.49,182.37,10.04998795]
[1755609839436,3.13,182.46,182.37,13.09998795]
[1755609839639,1.37029062,182.45,182.37,7.61858795]
[1755609840233,3.13,182.44,182.37,7.61858795]
[1755609840437,3.13,182.42,182.35,4.56858795]
[1755609840746,3.13,182.47,182.39,3.05]
[1755609840935,1.37020342,182.46,182.39,3.05]
[1755609841139,1.37020342,182.45,182.39,3.05]
[1755609841340,3.13,182.47,182.41,3.05]
[1755609841545,1.37018084,182.46,182.42,3.05]
[1755609841748,3.13,182.46,182.42,3.05]
[1755609841938,4.63083681,182.53,182.43,3.05]
[1755609842143,3.13,182.51,182.43,3.05]
[1755609842345,3.13,182.49,182.43,3.05]
[1755609842642,3.13,182.47,182.39,7.61858795]
[1755609843246,3.13,182.47,182.4,5.4804]
[1755609844650,3.13,182.47,182.41,8.5302]
[1755609844840,3.13,182.51,182.41,3.05]
[1755609845040,3.13,182.49,182.41,3.05]
[1755609845536,3.13,182.49,182.42,5.4798]
[1755609845743,3.13,182.49,182.41,3.05]
[1755609846442,3.13,182.49,182.41,8.5301]
[1755609847944,9.78,182.48,182.41,8.5301]
[1755609849450,3.13,182.47,182.41,8.5301]
[1755609851350,3.13,182.47,182.42,5.4799]
[1755609851546,3.13,182.47,182.4,4.56858795]
[1755609851751,9.78,182.48,182.45,3.05]
[1755609852257,9.78,182.48,182.42,3.05]
[1755609852451,9.78,182.48,182.46,4.56858795]
[1755609852754,9.78,182.48,182.47,8.5285]
[1755609854253,6.54,182.48,182.47,8.5285]
[1755609855351,6.54,182.48,182.47,3.05]
[1755609855559,6.54,182.48,182.46,5.4788]
[1755609855753,6.54,182.48,182.45,4.56858795]
[1755609856256,6.54,182.48,182.47,5.4785]
[1755609859164,3.13,182.53,182.47,5.4785]
[1755609861068,3.13,182.59,182.48,5.4781]
[1755609861262,3.13,182.57,182.45,4.56858795]
[1755609861470,3.13,182.55,182.45,4.56858795]
[1755609862163,3.13,182.55,182.47,5.4784]
[1755609862370,3.13,182.55,182.44,9.19942476]
[1755609863367,3.13,182.55,182.46,5.4786]
[1755609864568,7.22,182.54,182.46,5.4786]
[1755609864770,2.88,182.53,182.46,5.4786]
[1755609864963,2.88,182.53,182.45,5.4791]
[1755609865165,2.88,182.53,182.43,4.56858795]
[1755609865659,2.88,182.53,182.45,5.4789]
[1755609866470,2.88,182.53,182.44,5.4793]
[1755609867371,2.88,182.53,182.45,5.479]
[1755609868867,2.88,182.53,182.44,5.4793]
[1755609869068,2.88,182.53,182.43,4.56858795]
[1755609869569,2.88,182.53,182.46,5.4786]
[1755609869768,2.88,182.53,182.44,9.19942476]
[1755609870072,2.88,182.53,182.45,5.4789]
[1755609870273,2.88,182.53,182.44,9.19942476]
[1755609870772,2.88,182.53,182.46,5.4787]
[1755609872669,2.88,182.53,182.47,5.4784]
[1755609873572,2.88,182.53,182.44,9.19942476]
[1755609873971,2.88,182.53,182.48,5.4779]
[1755609874172,2.88,182.53,182.45,4.56858795]
[1755609874372,2.88,182.53,182.44,9.19942476]
[1755609875072,7.22,182.54,182.47,4.63083681]
[1755609875772,2.88,182.57,182.47,4.63083681]
[1755609876165,2.88,182.57,182.49,5.4779]
[1755609877874,8.97,182.56,182.49,5.4779]
[1755609879776,2.88,182.55,182.49,5.4779]
[1755609879976,2.88,182.55,182.48,5.4781]
[1755609880675,2.88,182.55,182.49,5.4778]
[1755609881577,8.97,182.56,182.5,5.4776]
[1755609883580,8.97,182.56,182.49,5.4778]
[1755609886275,8.97,182.56,182.5,5.4775]
[1755609890886,8.97,182.56,182.49,5.4778]
[1755609891782,2.88,182.55,182.49,5.4778]
[1755609892288,8.97,182.56,182.5,5.4776]
[1755609892488,2.95,182.54,182.5,5.4776]
[1755609894488,11.92,182.56,182.5,5.4776]
[1755609895782,2.95,182.55,182.49,4.5803935]
[1755609896782,8.97,182.56,182.5,5.4774]
[1755609896984,2.95,182.54,182.5,5.4774]
[1755609897290,2.95,182.54,182.5,10.0577935]
[1755609897682,2.95,182.54,182.5,5.4774]
[1755609897882,2.95,182.54,182.49,10.0581935]
[1755609898390,2.95,182.54,182.49,4.5803935]
[1755609899190,2.95,182.54,182.5,5.4776]
[1755609899492,4.63083681,182.6,182.5,10.0579935]
[1755609899686,4.31949031,182.59,182.5,10.0579935]
[1755609899883,2.95,182.57,182.5,9.21123031]
[1755609900389,7.58083681,182.55,182.48,4.5803935]
[1755609900587,1.36944854,182.54,182.47,4.5803935]
[1755609900789,2.95,182.52,182.47,4.5803935]
[1755609900989,2.95,182.5,182.47,4.5803935]
[1755609901292,9.3,182.57,182.49,5.4779]
[1755609901494,9.3,182.57,182.48,4.5803935]
[1755609901495,3.95317167,182.56,182.48,4.5803935]
[1755609901789,2.95,182.54,182.47,4.5803935]
[1755609901990,2.95,182.53,182.49,4.5803935]
[1755609902196,12.25,182.57,182.49,4.5803935]
[1755609902491,1.36961763,182.56,182.5,10.0578935]
[1755609902791,12.25,182.57,182.5,4.5803935]
[1755609902989,12.25,182.57,182.51,10.0575935]
[1755609903190,12.25,182.57,182.51,5.4772]
[1755609903783,12.25,182.57,182.5,4.5803935]
[1755609903981,12.25,182.57,182.53,4.5803935]
[1755609904192,9.3,182.57,182.53,4.5803935]
[1755609904495,9.3,182.57,182.56,5.4758]
[1755609904993,9.3,182.57,182.55,5.476]
[1755609905793,9.3,182.57,182.54,10.0566935]
[1755609906394,9.3,182.57,182.54,5.4763]
[1755609906602,9.3,182.57,182.55,5.476]
[1755609906791,9.3,182.57,182.53,4.5803935]
[1755609907594,12.25,182.57,182.54,4.5803935]
[1755609908197,12.25,182.57,182.54,10.0566935]
[1755609908400,12.25,182.57,182.54,5.4763]
[1755609909195,9.3,182.57,182.54,5.4763]
[1755609909392,9.3,182.57,182.53,4.5803935]
[1755609909600,9.3,182.57,182.55,4.63083681]
[1755609910108,9.3,182.57,182.56,5.4758]
[1755609910295,9.3,182.57,182.55,4.63083681]
[1755609910695,9.3,182.57,182.55,10.10663681]
[1755609911193,9.3,182.57,182.56,5.4758]
[1755609913503,9.3,182.57,182.55,5.476]
[1755609913794,9.3,182.57,182.45,377.32098952]
[1755609913795,2.95,182.56,182.5,4.5803935]
[1755609914004,2.95,182.56,182.49,4.5803935]
[1755609914202,2.95,182.56,182.5,5.4773]
[1755609914398,2.95,182.56,182.48,9.21123031]
[1755609914599,2.95,182.56,182.51,5.477]
[1755609914907,9.3,182.57,182.5,4.5803935]
[1755609915602,2.95,182.56,182.52,5.4769]
[1755609915805,9.3,182.57,182.52,5.4769]
[1755609916002,2.95,182.56,182.5,4.5803935]
[1755609916308,9.3,182.57,182.51,4.63083681]
[1755609916694,9.3,182.57,182.55,5.4761]
[1755609917302,9.3,182.57,182.56,5.4758]
[1755609917899,9.3,182.57,182.55,5.476]
[1755609918099,9.3,182.57,182.52,4.5803935]
[1755609918507,9.3,182.57,182.55,5.4758]
[1755609919006,12.25,182.57,182.54,5.4764]
[1755609919305,9.3,182.57,182.52,4.5803935]
[1755609919607,9.3,182.57,182.55,5.4758]
[1755609919902,12.25,182.57,182.55,5.4758]
[1755609920109,12.25,182.57,182.53,4.5803935]
[1755609920503,2.95,182.56,182.53,4.5803935]
[1755609920702,9.3,182.57,182.53,4.5803935]
[1755609920903,2.95,182.54,182.52,10.0570935]
[1755609921810,2.95,182.56,182.52,4.5803935]
[1755609922007,9.3,182.57,182.52,4.5803935]
[1755609922413,9.3,182.57,182.55,5.476]
[1755609922707,9.3,182.57,182.54,4.5803935]
[1755609923011,3.16,182.56,182.54,4.5803935]
[1755609923509,3.16,182.55,182.53,4.5803935]
[1755609923709,3.16,182.54,182.52,4.5803935]
[1755609924807,9.3,182.57,182.53,4.5803935]
[1755609925008,12.46,182.57,182.53,4.5803935]
[1755609925206,12.46,182.57,182.54,5.4764]
[1755609926010,9.3,182.57,182.55,5.476]
[1755609926405,3.16,182.6,182.55,5.476]
[1755609926601,3.16,182.6,182.54,9.21123031]
[1755609927102,3.16,182.6,182.56,5.4755]
[1755609928312,3.16,182.6,182.57,5.4754]
[1755609928814,3.16,182.6,182.56,5.4757]
[1755609929015,3.16,182.66,182.56,5.4757]
[1755609929309,3.16,182.64,182.56,5.4757]
[1755609929510,3.16,182.62,182.56,5.4757]
[1755609930614,3.16,182.64,182.57,5.4755]
[1755609930816,1.36903474,182.63,182.57,5.4755]
[1755609931114,3.16,182.6,182.57,5.4755]
[1755609931907,8.07,182.65,182.57,5.4755]
[1755609931908,3.16,182.64,182.57,5.4755]
[1755609932114,3.16,182.64,182.57,4.63083681]
[1755609932509,3.16,182.64,182.57,9.21123031]
[1755609932704,8.07,182.65,182.6,4.63083681]
[1755609933105,8.07,182.65,182.63,5.4737]
[1755609934320,8.07,182.65,182.6,9.21502001]
[1755609934917,3.16,182.63,182.6,4.63083681]
[1755609935909,3.16,182.63,182.6,10.10513681]
[1755609936107,8.07,182.65,182.6,10.10513681]
[1755609936108,3.16,182.62,182.6,4.63083681]
[1755609936314,3.16,182.64,182.6,4.63083681]
[1755609936524,3.16,182.64,182.6,10.10543681]
[1755609936819,3.16,182.63,182.6,10.10543681]
[1755609937319,8.07,182.65,182.6,4.63083681]
[1755609938022,3.16,182.64,182.61,5.4741]
[1755609938619,3.16,182.63,182.6,4.63083681]
[1755609939019,3.16,182.63,182.6,10.10523681]
[1755609940222,3.16,182.64,182.61,5.4742]
[1755609940423,8.07,182.65,182.61,5.4742]
[1755609940720,3.16,182.64,182.6,10.10533681]
[1755609940915,3.16,182.64,182.6,4.63083681]
[1755609941117,3.16,182.64,182.57,14.69032001]
[1755609941417,3.16,182.64,182.55,4.5841832]
[1755609941618,3.16,182.64,182.58,5.4751]
[1755609941920,3.16,182.64,182.57,9.21502001]
[1755609942317,3.16,182.64,182.58,5.475]
[1755609942517,3.16,182.64,182.57,9.21502001]
[1755609942721,8.07,182.65,182.57,4.63083681]
[1755609943116,8.07,182.65,182.57,9.21502001]
[1755609943818,8.07,182.65,182.6,5.4745]
[1755609944018,3.16,182.64,182.6,5.4745]
[1755609944525,3.16,182.64,182.57,9.21502001]
[1755609944924,3.16,182.64,182.61,5.4741]
[1755609945619,3.16,182.64,182.62,5.4738]
[1755609945827,8.07,182.65,182.62,5.4738]
[1755609946417,8.07,182.65,182.63,5.4737]
[1755609946824,3.16,182.64,182.62,5.4739]
[1755609947326,3.16,182.64,182.6,4.63083681]
[1755609947522,8.07,182.65,182.6,4.63083681]
[1755609947724,11.23,182.65,182.6,4.63083681]
[1755609947920,8.07,182.65,182.6,4.63083681]
[1755609948824,8.07,182.65,182.63,5.4735]
[1755609949326,8.07,182.65,182.64,5.4734]
[1755609951224,3.16,182.7,182.67,5.4724]
[1755609951421,3.16,182.7,182.66,4.63083681]
[1755609951621,3.16,182.76,182.66,4.63083681]
[1755609951820,3.16,182.74,182.66,4.63083681]
[1755609952622,3.16,182.74,182.68,5.4722]
[1755609953023,140.3172944,182.82,182.7,5.4716]
[1755609953329,3.01,182.8,182.69,4.63083681]
[1755609953525,3.8972216,182.79,182.69,10.10253681]
[1755609953724,3.01,182.77,182.69,10.10253681]
[1755609954122,3.01,182.77,182.7,5.4715]
[1755609954321,3.01,182.77,182.69,4.63083681]
[1755609954824,3.01,182.77,182.7,5.4714]
[1755609955823,3.01,182.77,182.69,10.10263681]
[1755609956323,3.01,182.77,182.69,4.63083681]
[1755609956524,3.01,182.77,182.7,5.4716]
[1755609958227,3.01,182.77,182.69,10.10263681]
[1755609959223,3.01,182.77,182.68,10.10293681]
[1755609960126,3.01,182.77,182.69,5.4719]
[1755609960629,3.01,182.77,182.63,4.56428204]
[1755609960931,3.01,182.75,182.63,4.63083681]
[1755609961235,3.01,182.75,182.66,4.63083681]
[1755609961633,3.01,182.75,182.62,4.63083681]
[1755609962226,3.01,182.75,182.65,5.473]
[1755609962530,3.01,182.75,182.62,4.63083681]
[1755609962727,3.01,182.75,182.62,4.56428204]
[1755609962922,3.01,182.75,182.64,4.63083681]
[1755609963323,3.01,182.75,182.67,5.4725]
[1755609963534,3.01,182.75,182.64,4.63083681]
[1755609964033,3.01,182.75,182.68,5.472]
[1755609964534,3.01,182.75,182.69,5.4718]
[1755609964735,3.01,182.75,182.67,4.63083681]
[1755609965631,3.01,182.75,182.68,5.4722]
[1755609967340,3.01,182.75,182.69,5.4719]
[1755609967543,3.01,182.75,182.64,4.56428204]
[1755609967753,3.01,182.75,182.67,4.63083681]
[1755609969952,3.01,182.75,182.67,10.10333681]
[1755609970354,3.01,182.75,182.68,5.4721]
[1755609970552,3.01,182.75,182.67,4.63083681]
[1755609971152,3.01,182.75,182.67,10.10313681]
[1755609971553,3.01,182.75,182.67,4.63083681]
[1755609972656,3.01,182.75,182.7,4.63083681]
[1755609973156,3.01,182.75,182.7,10.10223681]
[1755609973343,3.01,182.77,182.65,4.56428204]
[1755609973544,3.01,182.77,182.68,4.63083681]
[1755609974348,3.01,182.77,182.65,4.63083681]
[1755609974748,3.01,182.77,182.66,5.4727]
[1755609974959,3.8951002,182.76,182.62,4.56428204]
[1755609975156,3.8951275,182.75,182.61,4.63083681]
[1755609975459,3.01,182.73,182.59,4.56428204]
[1755609975661,3.01,182.71,182.59,4.63083681]
[1755609975861,3.01,182.69,182.59,4.63083681]
[1755609976157,3.01,182.73,182.59,4.63083681]
[1755609976360,3.01,182.71,182.62,4.63083681]
[1755609977456,3.01,182.71,182.59,4.56428204]
[1755609977457,3.01,182.69,182.6,10.10523681]
[1755609977658,3.01,182.69,182.6,4.63083681]
[1755609978158,3.01,182.69,182.6,10.10533681]
[1755609979252,3.01,182.69,182.6,5.4745]
[1755609979962,3.01,182.69,182.61,5.4742]
[1755609980163,3.01,182.69,182.59,9.19511885]
[1755609980461,3.01,182.69,182.62,5.4738]
[1755609980963,3.01,182.69,182.59,9.19511885]
[1755609981159,3.01,182.69,182.62,5.4738]
[1755609981662,6.71,182.68,182.62,5.4738]
[1755609981859,6.71,182.68,182.61,5.4742]
[1755609982058,3.01,182.67,182.61,5.4742]
[1755609982264,3.01,182.67,182.59,4.63083681]
[1755609982467,3.01,182.67,182.6,5.4743]
[1755609982757,3.01,182.67,182.59,4.63083681]
[1755609984054,3.01,182.67,182.59,9.19511885]
[1755609984257,6.71,182.68,182.59,9.19511885]
[1755609984461,6.71,182.68,182.61,4.63083681]
[1755609984764,2.86,182.67,182.61,4.63083681]
[1755609985358,2.86,182.67,182.59,4.56428204]
[1755609985558,2.86,182.67,182.58,14.67031885]
[1755609985759,2.86,182.67,182.58,9.19511885]
[1755609986166,2.86,182.67,182.58,14.67011885]
[1755609986363,2.86,182.67,182.58,9.19511885]
[1755609987569,2.86,182.67,182.58,14.67011885]
[1755609987867,2.86,182.67,182.58,9.19511885]
[1755609988268,2.86,182.67,182.59,10.03898204]
[1755609988570,2.86,182.67,182.59,4.56428204]
[1755609988966,2.86,182.67,182.6,5.4744]
[1755609992268,2.86,182.67,182.61,5.4743]
[1755609992569,2.86,182.67,182.61,4.63083681]
[1755609992864,2.86,182.67,182.61,10.10503681]
[1755609993658,2.86,182.67,182.61,4.63083681]
[1755609993873,2.86,182.67,182.59,4.56428204]
[1755609994467,2.86,182.67,182.58,9.19511885]
[1755609994764,2.86,182.67,182.58,14.67021885]
[1755609994969,2.86,182.67,182.58,9.19511885]
[1755609995172,2.86,182.67,182.58,4.63083681]
[1755609995770,2.86,182.67,182.56,10.03998204]
[1755609996163,2.86,182.67,182.56,4.56428204]
[1755609996662,2.86,182.67,182.57,5.4753]
[1755609996868,2.86,182.67,182.56,4.56428204]
[1755609997065,1.36891315,182.66,182.55,9.19511885]
[1755609997272,2.86,182.65,182.55,14.67101885]
[1755609997471,2.86,182.65,182.55,10.10673681]
[1755609998167,2.86,182.63,182.55,10.10673681]
[1755609998672,2.86,182.63,182.55,4.63083681]
[1755610000373,2.86,182.63,182.53,372.58428204]
[1755610000575,2.86,182.63,182.53,368.02]
[1755610000774,2.86,182.63,182.52,4.63083681]
[1755610001066,2.86,182.63,182.52,10.10763681]
[1755610001267,2.86,182.63,182.52,4.63083681]
[1755610001473,2.86,182.63,182.52,4.57397316]
[1755610001668,2.86,182.63,182.51,118.89522584]
[1755610002375,2.86,182.6,182.49,9.20480997]
[1755610002671,2.86,182.6,182.49,4.63083681]
[1755610002874,2.86,182.6,182.51,5.4772]
[1755610003773,2.86,182.6,182.5,5.4775]
[1755610004977,2.86,182.6,182.49,10.10863681]
[1755610005372,2.86,182.6,182.47,4.57397316]
[1755610005568,2.86,182.6,182.48,5.4782]
[1755610006071,2.86,182.6,182.49,5.4779]
[1755610007775,2.86,182.6,182.48,5.478]
[1755610008472,10.09,182.64,182.46,134.66]
[1755610008473,2.86,182.57,182.46,134.66]
[1755610008970,2.86,182.57,182.46,140.1387]
[1755610009874,2.86,182.57,182.47,5.4784]
[1755610011466,2.86,182.57,182.46,134.66]
[1755610011671,2.86,182.6,182.5,4.63083681]
[1755610011967,2.86,182.6,182.52,5.4768]
[1755610013777,2.86,182.6,182.51,5.4772]
[1755610016183,2.86,182.6,182.52,5.477]
[1755610016577,380.98,182.64,182.53,4.63083681]
[1755610017375,12.98,182.64,182.53,4.63083681]
[1755610017878,12.98,182.64,182.58,5.4749]
[1755610021772,12.98,182.64,182.57,5.4754]
[1755610021976,12.98,182.64,182.56,4.63083681]
[1755610022376,12.98,182.64,182.57,5.4755]
[1755610023983,12.98,182.64,182.58,5.4751]
[1755610027878,12.98,182.64,182.57,5.4754]
[1755610028383,12.98,182.64,182.58,5.4752]
[1755610028582,10.09,182.64,182.56,4.63083681]
[1755610028782,12.98,182.64,182.56,4.63083681]
[1755610029375,12.98,182.64,182.58,5.475]
[1755610030788,12.98,182.64,182.59,5.4749]
[1755610031083,10.09,182.64,182.59,5.4749]
[1755610031284,10.09,182.64,182.6,5.4745]
[1755610031487,10.09,182.64,182.59,4.63083681]
[1755610032086,10.09,182.64,182.62,5.4739]
[1755610033282,2.89,182.67,182.62,5.4739]
[1755610033785,2.89,182.67,182.61,5.4742]
[1755610035286,2.89,182.67,182.62,5.474]
[1755610036188,2.89,182.73,182.62,4.63083681]
[1755610037085,2.89,182.73,182.63,5.4737]
[1755610039991,2.89,182.73,182.62,10.10473681]
[1755610040193,2.89,182.73,182.62,4.63083681]
[1755610040586,2.89,182.73,182.62,10.10483681]
[1755610040782,2.89,182.73,182.62,4.63083681]
[1755610041090,2.89,182.73,182.62,10.10453681]
[1755610041281,2.89,182.73,182.62,4.63083681]
[1755610042294,2.89,182.73,182.66,5.4728]
[1755610042495,2.89,182.73,182.65,4.63083681]
[1755610042790,2.89,182.73,182.65,10.10373681]
[1755610043493,2.89,182.73,182.66,5.4728]
[1755610043896,2.89,182.73,182.65,4.63083681]